Cogmind - Beta 12 @@@ ROGUE MODE // 2023.05.17 @ 00:04:06 Player: maxwell Result: Destroyed by D-53 Grenadier with Mini Grenade Launcher Performance ------------- Evolutions (0) 0 Regions Visited (2) 400 Robots Destroyed (26) 130 Value Destroyed (590) 590 Prototype IDs (0) 0 Alien Tech Used (0) 0 Bonus (0) 0 TOTAL SCORE: 1120 Bonus ------- None Cogmind --------- Core Integrity 0/250 Matter 275/300 Energy 99/100 System Corruption 0% Temperature Cool (0) Movement Core (50) Location -10/Mines Parts ------- > --- POWER (1) -------- (None) > --- PROPULSION (2) --- (None) > --- UTILITY (2) ------ (None) > --- WEAPON (2) ------- Maul > --- INVENTORY (5) ---- Light Armor Plating Hardened Light Armor Plating Assault Rifle Grenade Launcher Peak State ------------ > --- POWER ------------ Ion Engine > --- PROPULSION ------- Light Treads > --- UTILITY ---------- Medium Storage Unit Hardened Light Armor Plating > --- WEAPON ----------- Small Laser Maul > --- INVENTORY -------- Light Armor Plating Hardened Light Armor Plating Hardened Light Armor Plating Hardened Light Armor Plating High-powered Tractor Beam Grenade Launcher Grenade Launcher Grenade Launcher Grenade Launcher Grenade Launcher [Rating: 9] Favorites ----------- Power Ion Engine Engine Ion Engine Propulsion Light Treads Treads Light Treads Leg Aluminum Leg Utility Medium Storage Unit Storage Medium Storage Unit Protection Hardened Light Armor Plating Weapon Assault Rifle Energy Gun Small Laser Ballistic Gun Assault Rifle Launcher Grenade Launcher Impact Weapon Maul Build | -11 -10 -10 ------- Run | Jun Mat Min Slots Evolved . | . . . Power . | . . . Propulsion . | . . . Utility . | . . . Weapon . | . . . Parts Attached 14 | . 12 2 Power 1 | . 1 . Engine 1 | . 1 . Core . | . . . Reactor . | . . . Propulsion 2 | . 2 . Treads 2 | . 2 . Leg . | . . . Wheel . | . . . Hover . | . . . Flight . | . . . Utility 3 | . 3 . Device . | . . . Storage 1 | . 1 . Processor . | . . . Hackware . | . . . Protection 2 | . 2 . Artifact . | . . . Weapon 8 | . 6 2 Energy Gun 2 | . 2 . Energy Cannon . | . . . Ballistic Gun 2 | . 2 . Ballistic Cannon . | . . . Launcher 2 | . 1 1 Special Weapon . | . . . Impact Weapon 2 | . 1 1 Slashing Weapon . | . . . Piercing Weapon . | . . . Special Melee Weapon . | . . . Unidentified Prototypes . | . . . Parts Lost 4 | . 3 1 Power . | . . . Propulsion 1 | . 1 . Utility . | . . . Weapon 3 | . 2 1 Highest Loss Streak 2 | . 2 1 To Critical Strikes . | . . . Average Slot Usage (%) 80 | . 82 61 Engine 13 | . 14 9 Treads 16 | . 17 9 Storage 13 | . 14 9 Protection 10 | . 10 9 Energy Gun 9 | . 10 . Ballistic Gun 7 | . 7 9 Launcher 4 | . 4 9 Impact Weapon 3 | . 3 2 Naked Turns 22 | . . 22 Heaviest Build 25 | 13 24 25 Greatest Support 40 | 20 40 20 Greatest Overweight (x) 1 | . 1 1 Average Overweight (x) . | . . . Largest Inventory Capacity 10 | . 10 10 Average Capacity 9 | . 9 8 Most Carried 10 | . 10 10 Average Carried 8 | . 8 8 Final Capacity 10 | 8 10 5 Final Carried 10 | 6 10 4 Class Distribution -------------------- 100% | Mutant Dominant Class ---------------- Mutant | -10/Materials Mutant | -10/Mines Resources | -11 -10 -10 ----------- Run | Jun Mat Min Matter Collected 610 | 200 289 121 Remotely . | . . . Salvage Created 657 | . 615 42 Parts 33 | . 28 5 Haulers Intercepted 2 | . 2 . Recyclers Shooed 3 | . 3 . Parts Field Recycled . | . . . Retrieved Matter . | . . . Parts Self-Destructed . | . . . Prevented . | . . . Kills | -11 -10 -10 ------- Run | Jun Mat Min Combat Hostiles Destroyed 16 | . 10 6 Guns 3 | . 3 . AOE 13 | . 7 6 Classes Destroyed 10 | . 8 2 Worker 1 | . 1 . Builder 1 | . 1 . Tunneler 1 | . 1 . Hauler 2 | . 2 . Recycler 2 | . 2 . Operator 1 | . 1 . Watcher 3 | . 3 . Swarmer 3 | . . 3 Grunt 12 | . 10 2 Assembled 1 | . . 1 Best Kill Streak 8 | . 8 3 Combat Bots Only 4 | . 4 3 Max Kills in Single Turn 3 | . 3 3 Gunslinging . | . . . Exploded 3 | . 1 3 Melee . | . . . Uniques/NPCs Destroyed . | . . . Combat | -11 -10 -10 -------- Run | Jun Mat Min Damage Taken 876 | . 575 301 Core 256 | . 85 171 Absorbed by Shields . | . . . Core Remaining (%) 100 | 100 . . Volleys Fired 47 | . 40 7 Largest 2 | . 2 1 Hottest 80 | . 80 30 Shots Fired 67 | . 60 7 Gun 39 | . 39 . Cannon . | . . . Launcher 28 | . 21 7 Special . | . . . Kinetic 10 | . 10 . Thermal 1 | . 1 . Explosive 28 | . 21 7 Electromagnetic 28 | . 28 . Robot Hit Streak 8 | . 8 3 Robot Miss Streak 2 | . 2 . Penetration Max . | . . . Secondary Targets . | . . . Shots Hit Robots 41 | . 39 2 Core Hits 49 | . 41 8 Critical Kills . | . . . Critical Parts Destroyed . | . . . Critical Strikes 1 | . 1 . Corrupt 1 | . 1 . Melee Attacks 10 | . 5 5 Impact 10 | . 5 5 Slashing . | . . . Piercing . | . . . Sneak Attacks 1 | . 1 . Combat Hostiles . | . . . Follow-up Attacks . | . . . Damage Inflicted 2263 | . 1640 623 Guns 390 | . 390 . Cannons . | . . . Explosions 1778 | . 1155 623 Melee 95 | . 95 . Ramming . | . . . Kinetic 87 | . 87 . Thermal 127 | . 127 . Explosive 1651 | . 1028 623 Electromagnetic 303 | . 303 . Impact 95 | . 95 . Slashing . | . . . Piercing . | . . . Highest Corruption . | . . . Average Corruption . | . . . Corruption Purged . | . . . Corruption Blocked . | . . . Overload Shots . | . . . Overflow Damage 110 | . 79 31 Projectiles . | . . . Explosions 55 | . 24 31 Melee 55 | . 55 . Knockbacks 1 | . 1 . Impact 1 | . 1 . Kinetic . | . . . Secondary . | . . . Self-Inflicted Damage 231 | . 231 . Shots 10 | . 10 . Rammed . | . . . Targets Rammed . | . . . Kicked . | . . . Crushed . | . . . Highest Temperature 189 | . 189 48 Average Temperature 46 | . 49 27 Received Heat Transfer 246 | . 198 48 Siege Activations . | . . . Robots Corrupted . | . . . Combat Hostiles . | . . . Parts Fried 2 | . 2 . Impact Corruptions 2 | . 2 . Robots Melted . | . . . Combat Hostiles . | . . . Parts Melted . | . . . Heat Transferred 150 | . 150 . Parts Sabotaged . | . . . Parts Stolen . | . . . Parts Stripped . | . . . Power Chain Reactions 3 | . 3 . Missiles Intercepted . | . . . Alert | -11 -10 -10 ------- Run | Jun Mat Min Peak Influence 281 | . 281 162 Initial 19 | . . 19 Average 115 | . 114 124 Maximum Alert Level 1 | . 1 . Low Security (%) 80 | . 78 100 Level 1 19 | . 21 . Level 2 . | . . . Level 3 . | . . . Level 4 . | . . . Level 5 . | . . . High Security . | . . . Max Security . | . . . Squads Dispatched 3 | . 3 . Investigation 2 | . 2 . Extermination . | . . . Reinforcement 1 | . 1 . Assault . | . . . Garrison . | . . . Intercept . | . . . Searches Triggered . | . . . Construction Impeded . | . . . Haulers Reinforced . | . . . Active Scanning Responses . | . . . Cargo Convoy Interrupts . | . . . Stealth | -11 -10 -10 --------- Run | Jun Mat Min Distress Signals 2 | . 2 . Communications Jammed . | . . . Distress Signals . | . . . Times Spotted 37 | . 19 18 Peak Tracking Total 9 | . 4 9 Tactical Retreats 3 | . 1 2 Traps | -11 -10 -10 ------- Run | Jun Mat Min Traps Triggered . | . . . Indirectly . | . . . Trap Hack Attempts . | . . . Triggered . | . . . Disarmed . | . . . Reprogrammed . | . . . Reused . | . . . Traps Extracted . | . . . Installed . | . . . Triggered . | . . . Machines | -11 -10 -10 ---------- Run | Jun Mat Min Machines Disabled 3 | . 3 . Max in Single Turn 1 | . 1 . Machines Repaired . | . . . Machines Sabotaged . | . . . Overloaded Fab Kills . | . . . Hacking | -11 -10 -10 --------- Run | Jun Mat Min Machines Accessed 9 | . 9 . Terminals 7 | . 7 . Fabricators . | . . . Repair Stations . | . . . Recycling Units 2 | . 2 . Scanalyzers . | . . . Garrison Access . | . . . Total Hacks 23 | . 23 . Successful 12 | . 12 . Failed 11 | . 11 . Catastrophic 1 | . 1 . Database Lockouts . | . . . Manual 19 | . 19 . Terminals 20 | . 20 . Fabricators . | . . . Repair Stations . | . . . Recycling Units 3 | . 3 . Scanalyzers . | . . . Garrison Access . | . . . Terminal Hacks 6 | . 6 . Part Schematic 2 | . 2 . Robot Analysis 2 | . 2 . Terminal Index 1 | . 1 . Locate Traps 1 | . 1 . Fabricator Hacks . | . . . Repair Station Hacks . | . . . Recycling Unit Hacks . | . . . Scanalyzer . | . . . Garrison Access Hacks . | . . . Unauthorized Hacks 6 | . 6 . Terminals 4 | . 4 . Assimilate 1 | . 1 . Botnet 2 | . 2 . Operators 1 | . 1 . Fabricators . | . . . Repair Stations . | . . . Recycling Units 2 | . 2 . Tunnel 2 | . 2 . Scanalyzers . | . . . Garrison Access . | . . . Data Cores Recovered . | . . . Used . | . . . Hacking Detections 6 | . 6 . Full Trace Events 1 | . 1 . Feedback Events . | . . . Feedback Blocked . | . . . Robot Schematics Acquired . | . . . Robots Built . | . . . Authchips . | . . . Time . | . . . Total Robot Build Rating . | . . . Part Schematics Acquired 2 | . 2 . Parts Built . | . . . Authchips . | . . . Time . | . . . Total Part Build Rating . | . . . Parts Repaired . | . . . Time . | . . . Parts Recycled . | . . . Recycled Matter . | . . . Retrieved Matter . | . . . Retrieved Components . | . . . Parts Scanalyzed . | . . . Part Schematics Acquired . | . . . Parts Damaged . | . . . Bothacking | -11 -10 -10 ------------ Run | Jun Mat Min Used RIF Installer . | . . . Robots Hacked . | . . . Non-combat . | . . . Combat . | . . . Robot Hacks Applied . | . . . Relay Couplers Released . | . . . Fabnet Peak Effective % . | . . . Robots Rewired . | . . . Allies Hacked . | . . . Hacks Repelled . | . . . Allies | -11 -10 -10 -------- Run | Jun Mat Min Total Allies 3 | . 1 2 Largest Group 3 | . 1 3 Highest-Rated Group 55 | . 10 55 Highest-Rated Ally 31 | . 10 31 Total Orders 6 | . 2 4 STAY 3 | . 1 2 FOLLOW 3 | . 1 2 Ally Attacks 4 | . . 4 Total Damage 22 | . . 22 Kills . | . . . Allies Corrupted . | . . . Allies Melted . | . . . Intel | -11 -10 -10 ------- Run | Jun Mat Min Robot Analysis Total 2 | . 2 . Derelict Logs Recovered 1 | . . 1 Drone Launches . | . . . Drone Recoveries . | . . . Exploration | -11 -10 -10 ------------- Run | Jun Mat Min Turns Passed 2172 | . 1988 184 Spaces Moved 929 | 1 798 130 Core 84 | . . 84 Treads 843 | . 797 46 Legs 2 | 1 1 . Wheels . | . . . Hover . | . . . Flight . | . . . Fastest Speed 50 | 120 120 50 Average Speed 204 | 120 218 117 Slowest Speed 240 | 120 240 240 Overloaded Moves . | . . . Propulsion Burnouts . | . . . Robots Hopped . | . . . Cave-ins Triggered . | . . . Exploration Rate (%) 43 | 2 97 31 Regions Visited 2 Branch Regions 1 Pre-discovered Areas 2 | . 2 . Known Exits Taken . | . . . Unknown Exits Taken 2 | 1 1 . Scrap Searched . | . . . Spaces Dug 38 | . 34 4 Terrain Destroyed 163 | . 113 50 Melee 8 | . 4 4 Projectile . | . . . AOE 155 | . 109 46 Terrain Rammed . | . . . Walls Destroyed . | . . . Machines Disabled . | . . . Actions | -11 -10 -10 --------- Run | Jun Mat Min Total 1119 | . 975 144 Wait 99 | . 99 . Move 927 | . 797 130 Hop . | . . . Pick Up 13 | . 13 . Fast Attach 2 | . 2 . Attach 6 | . 5 1 Detach . | . . . Swap 6 | . 5 1 Drop 9 | . 9 . Fire 47 | . 40 7 Melee 10 | . 5 5 Ram . | . . . Kick . | . . . Crush . | . . . Escape Stasis . | . . . Rewire . | . . . Trap . | . . . Miscellaneous . | . . . Route ------- -11/Junkyard -10/Materials (discovered 5 exits: [*Mat x3] / [*Min x2]) -10/Mines (discovered 1 exit: [*Mat]) History --------- Turn | Location | Event 1 | -11/Junkyard | Discovered new exit (range 0) 1 | -11/Junkyard | Entered Materials 291 | -10/Materials | Discovered new exit (range 12) 322 | -10/Materials | Build established: Mutant 585 | -10/Materials | Discovered new exit (range 16) 869 | -10/Materials | Discovered new exit (range 12) 869 | -10/Materials | Discovered new exit (range 4) 1215 | -10/Materials | Discovered new exit (range 13) 1989 | -10/Materials | Entered Mines 1989 | -10/Mines | Accompanied by 1 ally 2063 | -10/Mines | Discovered new exit (range 15) 2078 | -10/Mines | Assembled infested the area 2115 | -10/Mines | Released all parts (5) 2130 | -10/Mines | Core integrity fell below 50% 2155 | -10/Mines | Learned 8 Materials zone layouts 2172 | -10/Mines | Core integrity fell below 20% 2173 | -10/Mines | Destroyed by D-53 Grenadier with Mini Grenade Launcher Last Messages --------------- 02093_ U-05 Engineer builds a Wall. 02098_ as-37406 sneak attacks. 02106_ Technician 1a destroyed. 02109_ JZ-58M(z) destroyed. 02113_ as-87209 destroyed. 02115_ Grenade Launcher destroyed. 02115_ Released Hrd. Light Armor Plating. 02115_ Released Lgt. Treads. 02115_ Released Med. Storage Unit. 02115_ Released Ion Engine. 02115_ Released Assault Rifle. 02129_ as-37406 destroyed. 02133_ S-10 Pest destroyed. 02155_ Acquired derelict log, extracted data. Data stored: Materials zone layouts (x8). 02163_ Acquired 41 matter. 02164_ Acquired 44 matter. 02167_ Acquired 3 matter. 02171_ U-05 Engineer builds a Wall. 02171_ as-90854 destroyed. Map ----- +----------------------------------------------------+ | ?????????????????????????????????????????????? | | ?????????????????????????????????????????????? | | ?????????????????????????????????????????????? | | ?????????????????????????????????????????????? | | ?????????????????????????????????????????????? | | ?????????????????????????????????????????????? | | ?????????????????????????????????????????????? | | ?????????????????????????????????????????????? | | ?????????????????????????????????????????????? | | ?????????????????????????????????????????????? | | ?????????????????????????????????????????????? | | ?????????????????????????????????????????????? | | ?????????????????????????????????????????????? | | ?????????????????????????????????????????????? | | ?????????????????????????????????????????????? | | ?????????????????????????????????????????????? | | ?????????????????????????????????????????????? | | ?????????????????????????????????????????????? | | ??????????????????????????##?????????????????? | | ?????????????????????????? #?????????????????? | | ????????????????????????#? ??????????????????? | | ???????????????????????? # ??????????????????? | | ????????????????????????# ??????????????????? | | ???????????????????????## ##?????????????????? | | ???????????????????????# #?????????????????? | | ??????????????????????###@##?#?? #???????????? | | ??????????????????????# # # # ?????????????? | | ?????????????????????## u# ##????????????? | | ?????????????????????# #????????????? | | ????????????????????## #????????????? | | ????????????????????# %% #????????????? | | ????????????????????# #????????????? | | ???????????????????## # % #????????????? | | ??????????????????## ## #????????????? | | ??????????????##### #### d #????????????? | | ?????????????## #???##d####????????????? | | ???????####### #????? #???????????????? | | ???????# ! ##????? #???????????????? | | ???????#= = =#####?????? #???????????????? | | ??####?# ##### ##???????????#???????????????? | | ?## ### #??# #????????????????????????????? | | ## ## #?# "##????????????????????????????? | | # $ #?# #?????????????????????????????? | | ## #?# #?????????????????????????????? | | ### #?#####?????????????????????????????? | | < ## #???????????????????????????????????? | | ### ###???????????????????????????????????? | | #?????????????????????????????????????? | | #?????????????????????????????????????? | | ######?????????????????????????????????????? | +----------------------------------------------------+ Best States ------------- Heat Dissipation 25 Energy Generation 10 Energy Capacity 250 Matter Stores 300 Matter Capacity 300 Sight Range 16 Terrain Scan Density 10 Armor Coverage 150 Evasion (%) 50 Recoil Reduction 2 Item Schematics ----------------- Cargo Storage Unit | -10/Materials | Hacked Huge Storage Unit | -10/Materials | Hacked Robot Schematics ------------------ None Fabricated ------------ Nothing Alien Tech Used ----------------- None Achievements -------------- None Challenges ------------ None Game ------ Seed MiniStasisMapper Manual? 0 Play Time 00:08:45 Cumulative 346.3 hours Start 2023.05.16 @ 23:56:47 End 2023.05.17 @ 00:04:06 Sessions 1 Manual Loads 0 Difficulty Rogue Special Mode None Game No. 494 Rogue 467 Adventurer 4 Explorer 23 Win Type - Total 19 Types 14/0/2/2/1/0/0/0/0 Lore% 78 Gallery% 93 Achievement% 82 Wizard Run 0 Options --------- ASCII 0 Keyboard 1 Movement Numpad Keybinds 0 Fullscreen 1 Font 18/SmallcapsGlow Map View 76x50 Tactical HUD 1 Map Filters NONE Filters NONE Steam 1 RUN: 94616e1d-2c5e-4b65-a3a9-58973dcc1de8